[Event "*** Titled Tuesday Blitz"]
[Site "Chess.com"]
[Date "2020.11.10"]
[Round "1"]
[White "DishonorOnYourCow"]
[Black "maciek_92"]
[Result "0-1"]
[WhiteElo "2391"]
[BlackElo "2753"]
[TimeControl "180+1"]
[EndTime "10:08:36 PST"]
[Termination "maciek_92 won by resignation"]

1. d4 {[%clk 0:02:58.3]} 1... f5 {[%clk 0:02:57.4]} 2. c4 {[%clk 0:02:57.6]}
2... Nf6 {[%clk 0:02:57.1]} 3. g3 {[%clk 0:02:57]} 3... g6 {[%clk 0:02:57]} 4.
Nh3 {[%clk 0:02:56.7]} 4... Bg7 {[%clk 0:02:49.7]} 5. Bg2 {[%clk 0:02:56.2]}
5... d6 {[%clk 0:02:49.1]} 6. Nf4 {[%clk 0:02:56]} 6... e5 {[%clk 0:02:44.2]} 7.
dxe5 {[%clk 0:02:55.3]} 7... dxe5 {[%clk 0:02:45.1]} 8. Qxd8+ {[%clk 0:02:52.6]}
8... Kxd8 {[%clk 0:02:46]} 9. Nd5 {[%clk 0:02:52.6]} 9... c6 {[%clk 0:02:40.9]}
10. Nxf6 {[%clk 0:02:48]} 10... Bxf6 {[%clk 0:02:41.8]} 11. Nc3 {[%clk
0:02:48.6]} 11... Be6 {[%clk 0:02:37.1]} 12. b3 {[%clk 0:02:41.9]} 12... e4
{[%clk 0:02:35.2]} 13. Bb2 {[%clk 0:02:39]} 13... Nd7 {[%clk 0:02:35.8]} 14.
O-O-O {[%clk 0:02:35.8]} 14... Kc7 {[%clk 0:02:30.9]} 15. f3 {[%clk 0:02:17.8]}
15... exf3 {[%clk 0:02:25]} 16. exf3 {[%clk 0:02:18.7]} 16... Rhe8 {[%clk
0:02:25.3]} 17. f4 {[%clk 0:02:13.1]} 17... Rad8 {[%clk 0:02:24.9]} 18. Rhe1
{[%clk 0:02:12.9]} 18... Bf7 {[%clk 0:02:23]} 19. Kc2 {[%clk 0:02:03.4]} 19...
a6 {[%clk 0:02:11]} 20. Na4 {[%clk 0:01:58.3]} 20... Bxb2 {[%clk 0:02:00.7]} 21.
Nxb2 {[%clk 0:01:59.2]} 21... Nf6 {[%clk 0:01:57.3]} 22. Bf3 {[%clk 0:01:49.4]}
22... Rxd1 {[%clk 0:01:45.8]} 23. Rxe8 {[%clk 0:01:33.3]} 23... Rd7 {[%clk
0:01:24.5]} 24. Re2 {[%clk 0:01:24.7]} 24... b5 {[%clk 0:01:18.3]} 25. cxb5
{[%clk 0:01:19.6]} 25... axb5 {[%clk 0:01:17.9]} 26. Nd3 {[%clk 0:01:19.3]}
26... Bd5 {[%clk 0:01:17.5]} 27. Bxd5 {[%clk 0:01:07.3]} 27... Nxd5 {[%clk
0:01:18.4]} 28. Re6 {[%clk 0:01:06.3]} 28... Rd6 {[%clk 0:01:03.6]} 29. Re8
{[%clk 0:01:01.1]} 29... Rd8 {[%clk 0:01:01.8]} 30. Re6 {[%clk 0:00:45.3]} 30...
Rd6 {[%clk 0:01:00.9]} 31. Re8 {[%clk 0:00:45.2]} 31... Nf6 {[%clk 0:00:54.7]}
32. Re7+ {[%clk 0:00:36.8]} 32... Rd7 {[%clk 0:00:55.1]} 33. Re6 {[%clk
0:00:37]} 33... Ne4 {[%clk 0:00:54.5]} 34. Ne5 {[%clk 0:00:34.8]} 34... Rd2+
{[%clk 0:00:53.9]} 35. Kc1 {[%clk 0:00:34.8]} 35... Rxh2 {[%clk 0:00:50.7]} 36.
Rxc6+ {[%clk 0:00:34]} 36... Kb7 {[%clk 0:00:50.5]} 37. a4 {[%clk 0:00:33.6]}
37... bxa4 {[%clk 0:00:48.9]} 38. bxa4 {[%clk 0:00:34.5]} 38... Nxg3 {[%clk
0:00:49.1]} 39. a5 {[%clk 0:00:18]} 39... Ne2+ {[%clk 0:00:44]} 40. Kb1 {[%clk
0:00:17.9]} 40... Nxf4 {[%clk 0:00:41.3]} 41. Rb6+ {[%clk 0:00:17.2]} 41... Kc7
{[%clk 0:00:31.9]} 42. Rc6+ {[%clk 0:00:12.7]} 42... Kb7 {[%clk 0:00:16.4]} 43.
Rb6+ {[%clk 0:00:13]} 43... Kc7 {[%clk 0:00:15]} 44. Rc6+ {[%clk 0:00:13.2]}
44... Kd8 {[%clk 0:00:15.6]} 45. a6 {[%clk 0:00:12]} 45... Rh3 {[%clk
0:00:14.5]} 46. Kb2 {[%clk 0:00:06.9]} 46... Rh2+ {[%clk 0:00:14.2]} 47. Kb3
{[%clk 0:00:06.4]} 47... Rh1 {[%clk 0:00:14.4]} 48. Kb2 {[%clk 0:00:06.4]} 48...
Rh2+ {[%clk 0:00:13.4]} 49. Kb3 {[%clk 0:00:06.7]} 49... Rh3+ {[%clk 0:00:13.9]}
50. Kb4 {[%clk 0:00:06.4]} 50... Rh1 {[%clk 0:00:13.6]} 51. Kb5 {[%clk
0:00:04.1]} 51... Rb1+ {[%clk 0:00:13]} 52. Kc5 {[%clk 0:00:03.4]} 52... Ke7
{[%clk 0:00:11.3]} 53. Rc7+ {[%clk 0:00:03.2]} 53... Ke6 {[%clk 0:00:11.8]} 54.
Rxh7 {[%clk 0:00:04.1]} 54... Kxe5 {[%clk 0:00:11]} 55. a7 {[%clk 0:00:04.2]}
55... Ne6+ {[%clk 0:00:08.9]} 56. Kc6 {[%clk 0:00:03.8]} 56... Ra1 {[%clk
0:00:08.7]} 57. Kb6 {[%clk 0:00:03.6]} 57... g5 {[%clk 0:00:08.7]} 58. Rb7
{[%clk 0:00:02.9]} 58... g4 {[%clk 0:00:08.4]} 59. Rd7 {[%clk 0:00:02.4]} 59...
g3 {[%clk 0:00:08]} 60. Rd3 {[%clk 0:00:02.6]} 60... f4 {[%clk 0:00:07.9]} 61.
Rb3 {[%clk 0:00:02.7]} 61... Rxa7 {[%clk 0:00:07.2]} 62. Kxa7 {[%clk 0:00:02.7]}
62... Nd4 {[%clk 0:00:07.9]} 63. Rb1 {[%clk 0:00:02.1]} 63... f3 {[%clk
0:00:08.2]} 64. Kb6 {[%clk 0:00:02.7]} 64... g2 {[%clk 0:00:08.1]} 65. Kc5
{[%clk 0:00:03.6]} 65... f2 {[%clk 0:00:07]} 66. Rb8 {[%clk 0:00:03.4]} 66...
g1=Q {[%clk 0:00:07.1]} 67. Re8+ {[%clk 0:00:04.3]} 67... Ne6+ {[%clk
0:00:07.6]} 0-1

[Event "*** Titled Tuesday Blitz"]
[Site "Chess.com"]
[Date "2020.11.10"]
[Round "1"]
[White "KingCrusher275"]
[Black "Sofiia_Hryzlova"]
[Result "0-1"]
[WhiteElo "2579"]
[BlackElo "2289"]
[TimeControl "180+1"]
[EndTime "10:08:39 PST"]
[Termination "Sofiia_Hryzlova won by checkmate"]

1. d4 {[%clk 0:03:00.9]} 1... Nf6 {[%clk 0:02:53.2]} 2. c4 {[%clk 0:03:01.2]}
2... e6 {[%clk 0:02:52.3]} 3. Nc3 {[%clk 0:03:01.4]} 3... Bb4 {[%clk 0:02:52.4]}
4. Qc2 {[%clk 0:03:01.9]} 4... O-O {[%clk 0:02:50.8]} 5. a3 {[%clk 0:03:02.3]}
5... Bxc3+ {[%clk 0:02:49.8]} 6. Qxc3 {[%clk 0:03:03.2]} 6... b6 {[%clk
0:02:48.4]} 7. Bg5 {[%clk 0:03:02.8]} 7... h6 {[%clk 0:02:47.4]} 8. Bh4 {[%clk
0:03:01.8]} 8... Bb7 {[%clk 0:02:47.6]} 9. f3 {[%clk 0:03:01.6]} 9... d6 {[%clk
0:02:45.7]} 10. e3 {[%clk 0:02:59]} 10... Nbd7 {[%clk 0:02:44.6]} 11. Bd3 {[%clk
0:02:59.5]} 11... e5 {[%clk 0:02:43.1]} 12. d5 {[%clk 0:02:53.6]} 12... a5
{[%clk 0:02:33.4]} 13. Ne2 {[%clk 0:02:47.7]} 13... a4 {[%clk 0:02:31.3]} 14.
O-O {[%clk 0:02:39.5]} 14... Qe7 {[%clk 0:02:15.6]} 15. Ng3 {[%clk 0:02:30]}
15... g6 {[%clk 0:02:11.5]} 16. Ne4 {[%clk 0:02:15.6]} 16... Rfe8 {[%clk
0:01:47.7]} 17. f4 {[%clk 0:01:56.8]} 17... Nxe4 {[%clk 0:01:33.1]} 18. Bxe7
{[%clk 0:01:34.1]} 18... Nxc3 {[%clk 0:01:31.1]} 19. Bh4 {[%clk 0:01:34.2]}
19... Nc5 {[%clk 0:01:29.2]} 20. Bc2 {[%clk 0:01:30]} 20... N3e4 {[%clk
0:01:27.6]} 21. fxe5 {[%clk 0:01:29.2]} 21... Rxe5 {[%clk 0:01:25.8]} 22. Rad1
{[%clk 0:01:25.8]} 22... Ba6 {[%clk 0:01:24.7]} 23. Rd4 {[%clk 0:01:25.4]} 23...
Rae8 {[%clk 0:01:24.3]} 24. Rf3 {[%clk 0:01:21.2]} 24... f5 {[%clk 0:01:16]} 25.
Kf1 {[%clk 0:01:15.7]} 25... Kg7 {[%clk 0:01:15.5]} 26. Ke2 {[%clk 0:01:15.2]}
26... Ng5 {[%clk 0:01:13.5]} 27. Bxg5 {[%clk 0:01:11.5]} 27... hxg5 {[%clk
0:01:13.4]} 28. h3 {[%clk 0:01:12.1]} 28... Ne4 {[%clk 0:01:10.8]} 29. g4 {[%clk
0:01:11.1]} 29... fxg4 {[%clk 0:01:07]} 30. hxg4 {[%clk 0:01:10.8]} 30... Nf6
{[%clk 0:01:07.3]} 31. Kf2 {[%clk 0:01:07.9]} 31... Rh8 {[%clk 0:01:01.7]} 32.
Kg2 {[%clk 0:01:08]} 32... Rh4 {[%clk 0:01:00.2]} 33. Rg3 {[%clk 0:01:07.6]}
33... Bc8 {[%clk 0:00:57.1]} 34. Bxa4 {[%clk 0:01:07.4]} 34... Nxg4 {[%clk
0:00:49.9]} 35. Kf3 {[%clk 0:01:02.5]} 35... Rf5+ {[%clk 0:00:45.4]} 36. Ke2
{[%clk 0:01:02.8]} 36... Ne5 {[%clk 0:00:43]} 37. Rxg5 {[%clk 0:00:58.2]} 37...
Rxd4 {[%clk 0:00:39.8]} 38. Rxf5 {[%clk 0:00:58.4]} 38... Rxc4 {[%clk
0:00:37.9]} 39. Rf4 {[%clk 0:00:50.6]} 39... Rxf4 {[%clk 0:00:32.5]} 40. exf4
{[%clk 0:00:51.5]} 40... Nc4 {[%clk 0:00:31.5]} 41. Bb3 {[%clk 0:00:51.2]} 41...
Nxb2 {[%clk 0:00:29.2]} 42. Kd2 {[%clk 0:00:51.4]} 42... Bf5 {[%clk 0:00:28.9]}
43. Kc3 {[%clk 0:00:51.4]} 43... Nd3 {[%clk 0:00:28.5]} 44. Kc4 {[%clk
0:00:51.4]} 44... Nxf4 {[%clk 0:00:27.7]} 45. Kb5 {[%clk 0:00:51.5]} 45... Bd7+
{[%clk 0:00:27.1]} 46. Ka6 {[%clk 0:00:51.9]} 46... Bc8+ {[%clk 0:00:20.1]} 47.
Ka7 {[%clk 0:00:52.1]} 47... Ne2 {[%clk 0:00:17.7]} 48. Kb8 {[%clk 0:00:51.7]}
48... Nd4 {[%clk 0:00:16.3]} 49. Bd1 {[%clk 0:00:47.4]} 49... Ba6 {[%clk
0:00:12]} 50. Kxc7 {[%clk 0:00:46.7]} 50... Bc4 {[%clk 0:00:12.4]} 51. Kxd6
{[%clk 0:00:44.6]} 51... b5 {[%clk 0:00:12.5]} 52. Kc5 {[%clk 0:00:43.4]} 52...
Nf5 {[%clk 0:00:12.1]} 53. d6 {[%clk 0:00:40.8]} 53... Kf7 {[%clk 0:00:12.2]}
54. a4 {[%clk 0:00:37.6]} 54... bxa4 {[%clk 0:00:08.6]} 55. Kxc4 {[%clk
0:00:33.1]} 55... Ne3+ {[%clk 0:00:08.4]} 56. Kc5 {[%clk 0:00:29.8]} 56... Nxd1
{[%clk 0:00:06.3]} 57. Kc6 {[%clk 0:00:30.7]} 57... Nc3 {[%clk 0:00:01.4]} 58.
d7 {[%clk 0:00:30.2]} 58... Ke7 {[%clk 0:00:01.9]} 59. Kc7 {[%clk 0:00:25.2]}
59... Nb5+ {[%clk 0:00:02.2]} 60. Kc8 {[%clk 0:00:23.8]} 60... Nd6+ {[%clk
0:00:02.7]} 61. Kc7 {[%clk 0:00:21.2]} 61... Nf7 {[%clk 0:00:03.2]} 62. Kc6
{[%clk 0:00:21.5]} 62... Nd8+ {[%clk 0:00:03.4]} 63. Kc7 {[%clk 0:00:21.9]}
63... Ke6 {[%clk 0:00:03.3]} 64. Kxd8 {[%clk 0:00:22.2]} 64... a3 {[%clk
0:00:04]} 65. Ke8 {[%clk 0:00:22.7]} 65... a2 {[%clk 0:00:04.9]} 66. d8=Q {[%clk
0:00:23.1]} 66... a1=Q {[%clk 0:00:05.8]} 67. Qe7+ {[%clk 0:00:23.3]} 67... Kf5
{[%clk 0:00:05.4]} 68. Qc5+ {[%clk 0:00:20.7]} 68... Qe5+ {[%clk 0:00:05.1]} 69.
Qxe5+ {[%clk 0:00:18.5]} 69... Kxe5 {[%clk 0:00:06]} 70. Kf7 {[%clk 0:00:18.9]}
70... g5 {[%clk 0:00:06.9]} 71. Kg6 {[%clk 0:00:19.5]} 71... g4 {[%clk
0:00:07.8]} 72. Kg5 {[%clk 0:00:20.3]} 72... g3 {[%clk 0:00:08.7]} 73. Kg4
{[%clk 0:00:21.1]} 73... g2 {[%clk 0:00:09.6]} 74. Kf3 {[%clk 0:00:22]} 74...
g1=Q {[%clk 0:00:10.5]} 75. Ke2 {[%clk 0:00:22.5]} 75... Qg4+ {[%clk 0:00:10]}
76. Kd2 {[%clk 0:00:23.4]} 76... Qf4+ {[%clk 0:00:10.9]} 77. Kc3 {[%clk
0:00:24.2]} 77... Qe4 {[%clk 0:00:11]} 78. Kb3 {[%clk 0:00:25.1]} 78... Qd4
{[%clk 0:00:11.9]} 79. Kc2 {[%clk 0:00:24.9]} 79... Ke4 {[%clk 0:00:12.8]} 80.
Kb3 {[%clk 0:00:25.5]} 80... Qd3+ {[%clk 0:00:13.4]} 81. Kb2 {[%clk 0:00:25.7]}
81... Kd4 {[%clk 0:00:13.7]} 82. Ka2 {[%clk 0:00:26.6]} 82... Qc3 {[%clk
0:00:14.2]} 83. Kb1 {[%clk 0:00:26.8]} 83... Qd2 {[%clk 0:00:13.8]} 84. Ka1
{[%clk 0:00:27.2]} 84... Kc3 {[%clk 0:00:14.7]} 85. Kb1 {[%clk 0:00:27.6]} 85...
Qb2# {[%clk 0:00:15.3]} 0-1

[Event "*** Titled Tuesday Blitz"]
[Site "Chess.com"]
[Date "2020.11.10"]
[Round "1"]
[White "Mikhal867"]
[Black "klimkoj"]
[Result "1-0"]
[WhiteElo "2347"]
[BlackElo "2633"]
[TimeControl "180+1"]
[EndTime "10:08:43 PST"]
[Termination "Mikhal867 won by resignation"]

1. e4 {[%clk 0:02:57.4]} 1... c5 {[%clk 0:02:59.7]} 2. Nf3 {[%clk 0:02:56.2]}
2... d6 {[%clk 0:03:00]} 3. Bb5+ {[%clk 0:02:53.9]} 3... Nd7 {[%clk 0:02:59.3]}
4. O-O {[%clk 0:02:52]} 4... Nf6 {[%clk 0:02:58.2]} 5. Re1 {[%clk 0:02:49.5]}
5... a6 {[%clk 0:02:57.3]} 6. Bf1 {[%clk 0:02:47.1]} 6... e5 {[%clk 0:02:46.4]}
7. c3 {[%clk 0:02:46]} 7... Be7 {[%clk 0:02:45.6]} 8. d4 {[%clk 0:02:45]} 8...
O-O {[%clk 0:02:42.5]} 9. h3 {[%clk 0:02:44.3]} 9... b5 {[%clk 0:02:40.8]} 10.
a4 {[%clk 0:02:42.6]} 10... Bb7 {[%clk 0:02:24.2]} 11. d5 {[%clk 0:02:41]} 11...
c4 {[%clk 0:02:18.1]} 12. b4 {[%clk 0:02:12.4]} 12... cxb3 {[%clk 0:02:14.1]}
13. axb5 {[%clk 0:02:09.7]} 13... axb5 {[%clk 0:02:06.6]} 14. Rxa8 {[%clk
0:02:08.8]} 14... Qxa8 {[%clk 0:02:07.5]} 15. Bxb5 {[%clk 0:01:57.9]} 15... Nc5
{[%clk 0:02:06.1]} 16. Nbd2 {[%clk 0:01:53.5]} 16... Ba6 {[%clk 0:01:42.5]} 17.
Bc6 {[%clk 0:01:40.9]} 17... Qb8 {[%clk 0:01:37.8]} 18. Ba3 {[%clk 0:01:40.6]}
18... Bd3 {[%clk 0:01:12.1]} 19. Bxc5 {[%clk 0:01:09.2]} 19... Bc2 {[%clk
0:01:11]} 20. Qc1 {[%clk 0:00:49.5]} 20... dxc5 {[%clk 0:01:08.8]} 21. c4 {[%clk
0:00:49.6]} 21... Bd8 {[%clk 0:01:02.8]} 22. Qb2 {[%clk 0:00:38.4]} 22... Ba5
{[%clk 0:00:59.5]} 23. Re3 {[%clk 0:00:37.9]} 23... Bc7 {[%clk 0:00:32.5]} 24.
Bb5 {[%clk 0:00:37.2]} 24... Qa7 {[%clk 0:00:27.5]} 25. Nxb3 {[%clk 0:00:36.9]}
25... Bxe4 {[%clk 0:00:27.6]} 26. Nfd2 {[%clk 0:00:35.6]} 26... Bg6 {[%clk
0:00:26.8]} 27. f3 {[%clk 0:00:34]} 27... Ra8 {[%clk 0:00:24.4]} 28. Ne4 {[%clk
0:00:30]} 28... Nh5 {[%clk 0:00:15.8]} 29. d6 {[%clk 0:00:28.4]} 29... Bb6
{[%clk 0:00:12.8]} 30. d7 {[%clk 0:00:27.9]} 30... Bf5 {[%clk 0:00:10.9]} 31. g4
{[%clk 0:00:25.7]} 31... Bxd7 {[%clk 0:00:10.8]} 32. gxh5 {[%clk 0:00:24.7]}
32... Bxb5 {[%clk 0:00:10]} 33. Nd6 {[%clk 0:00:18.4]} 33... Bc6 {[%clk
0:00:08.6]} 34. Qxe5 {[%clk 0:00:17.3]} 34... Qd7 {[%clk 0:00:08.3]} 35. Nf5
{[%clk 0:00:15.9]} 35... f6 {[%clk 0:00:07.8]} 36. Qe6+ {[%clk 0:00:14.7]} 36...
Qxe6 {[%clk 0:00:08.2]} 37. Rxe6 {[%clk 0:00:14.7]} 37... Bd7 {[%clk 0:00:08.6]}
38. Ne7+ {[%clk 0:00:10.6]} 38... Kf7 {[%clk 0:00:08.4]} 39. Rxb6 {[%clk
0:00:10.5]} 39... Kxe7 {[%clk 0:00:08.7]} 40. Rb7 {[%clk 0:00:10.8]} 40... Rc8
{[%clk 0:00:08.3]} 41. h4 {[%clk 0:00:09.9]} 41... Ke6 {[%clk 0:00:08.5]} 42.
Rb6+ {[%clk 0:00:08.6]} 42... Ke7 {[%clk 0:00:07.9]} 43. Rb7 {[%clk 0:00:08.7]}
43... Kd6 {[%clk 0:00:08.4]} 44. Rb6+ {[%clk 0:00:08.8]} 44... Rc6 {[%clk
0:00:08.3]} 45. Rb7 {[%clk 0:00:08.8]} 45... Rc8 {[%clk 0:00:07.5]} 46. Rb6+
{[%clk 0:00:08.5]} 46... Rc6 {[%clk 0:00:08.1]} 47. Rb7 {[%clk 0:00:08.4]} 47...
Ra6 {[%clk 0:00:08.5]} 48. Rxd7+ {[%clk 0:00:07.3]} 48... Kc6 {[%clk 0:00:07.6]}
49. Rxg7 {[%clk 0:00:06.6]} 49... Ra3 {[%clk 0:00:07.8]} 50. Nd2 {[%clk
0:00:06.5]} 50... Rd3 {[%clk 0:00:07.6]} 51. Ne4 {[%clk 0:00:06.1]} 51... Rxf3
{[%clk 0:00:07.5]} 52. Rxh7 {[%clk 0:00:06.5]} 52... Rf4 {[%clk 0:00:07.9]} 53.
Ng3 {[%clk 0:00:04.8]} 53... Rxc4 {[%clk 0:00:08.1]} 54. Rf7 {[%clk 0:00:04.3]}
54... Rxh4 {[%clk 0:00:08.1]} 55. Rxf6+ {[%clk 0:00:04]} 55... Kd5 {[%clk
0:00:08.3]} 56. Kg2 {[%clk 0:00:04.1]} 56... c4 {[%clk 0:00:08.8]} 57. Rf5+
{[%clk 0:00:04.2]} 57... Kd4 {[%clk 0:00:08.1]} 58. Rf4+ {[%clk 0:00:03]} 58...
Rxf4 {[%clk 0:00:07.1]} 59. Ne2+ {[%clk 0:00:02.9]} 59... Ke3 {[%clk 0:00:07.2]}
60. Nxf4 {[%clk 0:00:02.9]} 60... Kxf4 {[%clk 0:00:03.8]} 61. h6 {[%clk
0:00:02.9]} 61... c3 {[%clk 0:00:04.3]} 62. h7 {[%clk 0:00:03]} 62... c2 {[%clk
0:00:05.2]} 63. h8=Q {[%clk 0:00:02]} 63... c1=Q {[%clk 0:00:05.2]} 64. Qh6+
{[%clk 0:00:02.3]} 1-0

[Event "*** Titled Tuesday Blitz"]
[Site "Chess.com"]
[Date "2020.11.10"]
[Round "1"]
[White "joksijoksi"]
[Black "olksuna"]
[Result "0-1"]
[WhiteElo "2298"]
[BlackElo "2616"]
[TimeControl "180+1"]
[EndTime "10:08:43 PST"]
[Termination "olksuna won on time"]

1. d4 {[%clk 0:02:57.6]} 1... Nf6 {[%clk 0:02:59.4]} 2. c4 {[%clk 0:02:57.6]}
2... e6 {[%clk 0:02:59.7]} 3. Nc3 {[%clk 0:02:58.1]} 3... Bb4 {[%clk 0:02:59.5]}
4. f3 {[%clk 0:02:58.5]} 4... d5 {[%clk 0:02:54]} 5. a3 {[%clk 0:02:58.5]} 5...
Be7 {[%clk 0:02:53.1]} 6. e4 {[%clk 0:02:58.2]} 6... dxe4 {[%clk 0:02:47.5]} 7.
fxe4 {[%clk 0:02:59.1]} 7... c5 {[%clk 0:02:45.3]} 8. d5 {[%clk 0:02:59.3]} 8...
exd5 {[%clk 0:02:44.4]} 9. exd5 {[%clk 0:03:00.2]} 9... O-O {[%clk 0:02:44.5]}
10. Be2 {[%clk 0:02:59.4]} 10... Bf5 {[%clk 0:02:36.8]} 11. Nf3 {[%clk 0:02:56]}
11... Bd6 {[%clk 0:02:37.1]} 12. O-O {[%clk 0:02:54.8]} 12... a6 {[%clk
0:02:37.1]} 13. Nh4 {[%clk 0:02:49]} 13... Bg6 {[%clk 0:02:35.4]} 14. Bg5 {[%clk
0:02:48]} 14... Nbd7 {[%clk 0:02:32.8]} 15. Nxg6 {[%clk 0:02:41.9]} 15... hxg6
{[%clk 0:02:31]} 16. Ne4 {[%clk 0:02:42.4]} 16... Be5 {[%clk 0:02:25.4]} 17. Rb1
{[%clk 0:02:32.1]} 17... Re8 {[%clk 0:02:20.2]} 18. Bg4 {[%clk 0:02:31.8]} 18...
Qc7 {[%clk 0:02:09.2]} 19. Bxd7 {[%clk 0:02:24]} 19... Nxd7 {[%clk 0:02:08.7]}
20. Kh1 {[%clk 0:02:20.7]} 20... Bxh2 {[%clk 0:01:42.2]} 21. Qf3 {[%clk
0:02:19.8]} 21... f5 {[%clk 0:01:33.6]} 22. Nc3 {[%clk 0:01:46.5]} 22... Ne5
{[%clk 0:01:24.3]} 23. Qh3 {[%clk 0:01:36.8]} 23... Ng4 {[%clk 0:01:21.7]} 24.
Rf3 {[%clk 0:01:08.9]} 24... Be5 {[%clk 0:01:09.4]} 25. Rbf1 {[%clk 0:01:06.7]}
25... Bxc3 {[%clk 0:00:51.9]} 26. bxc3 {[%clk 0:01:02.1]} 26... Re4 {[%clk
0:00:52.8]} 27. Bf4 {[%clk 0:00:54.8]} 27... Qd7 {[%clk 0:00:49.2]} 28. Qh4
{[%clk 0:00:42.5]} 28... Rae8 {[%clk 0:00:47.6]} 29. Qg5 {[%clk 0:00:41.2]}
29... Qf7 {[%clk 0:00:36.6]} 30. Bd6 {[%clk 0:00:18.4]} 30... b6 {[%clk
0:00:30.9]} 31. Rf4 {[%clk 0:00:14.5]} 31... Re1 {[%clk 0:00:25.4]} 32. g3
{[%clk 0:00:06.2]} 32... Qd7 {[%clk 0:00:23.1]} 33. Qxg6 {[%clk 0:00:05.4]}
33... Rxf1+ {[%clk 0:00:20.5]} 34. Rxf1 {[%clk 0:00:05.3]} 34... Nh6 {[%clk
0:00:18.2]} 35. Bf4 {[%clk 0:00:04.9]} 35... Nf7 {[%clk 0:00:17.9]} 36. Bg5
{[%clk 0:00:02.2]} 36... Nd6 {[%clk 0:00:12.4]} 37. Bf4 {[%clk 0:00:02.3]} 37...
Ne4 {[%clk 0:00:11.4]} 38. Be3 {[%clk 0:00:02.2]} 38... Nxc3 {[%clk 0:00:08.1]}
39. Bf4 {[%clk 0:00:01.2]} 39... Ne2 {[%clk 0:00:07.4]} 40. Qh5 {[%clk
0:00:01.9]} 40... Nxf4 {[%clk 0:00:07.1]} 41. Rxf4 {[%clk 0:00:02.8]} 41... Qe7
{[%clk 0:00:07.6]} 42. Kg2 {[%clk 0:00:03.3]} 42... Qe2+ {[%clk 0:00:07.4]} 43.
Qxe2 {[%clk 0:00:03.8]} 43... Rxe2+ {[%clk 0:00:08.3]} 44. Rf2 {[%clk
0:00:04.4]} 44... Re5 {[%clk 0:00:06.5]} 45. Rd2 {[%clk 0:00:03.9]} 45... Kf8
{[%clk 0:00:06.3]} 46. Kf3 {[%clk 0:00:04.1]} 46... Ke7 {[%clk 0:00:06.4]} 47.
Kf4 {[%clk 0:00:04.3]} 47... Kd6 {[%clk 0:00:06.8]} 48. g4 {[%clk 0:00:02.2]}
48... fxg4 {[%clk 0:00:05.6]} 49. Rg2 {[%clk 0:00:02.6]} 49... g5+ {[%clk
0:00:04.4]} 50. Kxg4 {[%clk 0:00:02.9]} 50... Re4+ {[%clk 0:00:05]} 51. Kxg5
{[%clk 0:00:03.8]} 51... Rxc4 {[%clk 0:00:05.8]} 52. Rh2 {[%clk 0:00:04.3]}
52... Kxd5 {[%clk 0:00:05.8]} 53. Rh6 {[%clk 0:00:05]} 53... Rc3 {[%clk
0:00:04.9]} 54. Rxb6 {[%clk 0:00:04.8]} 54... Rxa3 {[%clk 0:00:05.3]} 55. Kf4
{[%clk 0:00:05.2]} 55... c4 {[%clk 0:00:05.4]} 56. Rb8 {[%clk 0:00:04.2]} 56...
Kc5 {[%clk 0:00:05.3]} 57. Ke4 {[%clk 0:00:04.5]} 57... Rh3 {[%clk 0:00:04.6]}
58. Ra8 {[%clk 0:00:02.7]} 58... Kb5 {[%clk 0:00:04.6]} 59. Rb8+ {[%clk
0:00:02.7]} 59... Ka4 {[%clk 0:00:04.9]} 60. Kd4 {[%clk 0:00:02.3]} 60... c3
{[%clk 0:00:04.4]} 61. Rc8 {[%clk 0:00:01.5]} 61... Kb3 {[%clk 0:00:04.8]} 62.
Rb8+ {[%clk 0:00:01.8]} 62... Kc2 {[%clk 0:00:05.2]} 63. Rb7 {[%clk 0:00:01.1]}
63... Kd2 {[%clk 0:00:05]} 64. Kc4 {[%clk 0:00:01.5]} 64... c2 {[%clk
0:00:04.7]} 65. Rd7+ {[%clk 0:00:02.2]} 65... Kc1 {[%clk 0:00:05.1]} 0-1